[Event "Live Chess"]
[Site "Chess.com"]
[Date "2023.05.20"]
[Round "-"]
[White "ossie57"]
[Black "Bob2pen"]
[Result "1-0"]
[WhiteElo "1901"]
[BlackElo "1816"]
[TimeControl "300"]
[EndTime "11:53:53 PDT"]
[Termination "ossie57 won by resignation"]

1. d4 {[%clk 0:04:59]} 1... Nf6 {[%clk 0:04:58.6]} 2. Nc3 {[%clk 0:04:58.2]}
2... d5 {[%clk 0:04:56.3]} 3. Bf4 {[%clk 0:04:57.4]} 3... g6 {[%clk 0:04:54.1]}
4. e3 {[%clk 0:04:54.8]} 4... Bg7 {[%clk 0:04:52.9]} 5. Nb5 {[%clk 0:04:53.4]}
5... Na6 {[%clk 0:04:51.2]} 6. h4 {[%clk 0:04:52]} 6... c6 {[%clk 0:04:49.2]} 7.
Nc3 {[%clk 0:04:50.8]} 7... O-O {[%clk 0:04:47.7]} 8. Be2 {[%clk 0:04:50.2]}
8... b5 {[%clk 0:04:42.5]} 9. h5 {[%clk 0:04:47.3]} 9... b4 {[%clk 0:04:38.3]}
10. Nb1 {[%clk 0:04:39.4]} 10... Qb6 {[%clk 0:04:23]} 11. hxg6 {[%clk
0:04:34.5]} 11... hxg6 {[%clk 0:04:21.7]} 12. Nf3 {[%clk 0:04:22.8]} 12... Bg4
{[%clk 0:04:17.3]} 13. Ne5 {[%clk 0:04:18.8]} 13... Bxe2 {[%clk 0:04:15.3]} 14.
Qxe2 {[%clk 0:04:18.7]} 14... Nc7 {[%clk 0:04:13.1]} 15. Bg5 {[%clk 0:03:56.6]}
15... Ne6 {[%clk 0:04:10.4]} 16. Bxf6 {[%clk 0:03:53.3]} 16... Bxf6 {[%clk
0:04:07.4]} 17. Nd7 {[%clk 0:03:52.5]} 17... Qa5 {[%clk 0:04:03.6]} 18. Nxf6+
{[%clk 0:03:42.8]} 18... exf6 {[%clk 0:04:01.6]} 19. Qf3 {[%clk 0:03:35.6]}
19... b3+ {[%clk 0:03:55.5]} 20. c3 {[%clk 0:03:25.1]} 20... Kg7 {[%clk
0:03:46.4]} 21. Nd2 {[%clk 0:03:15.9]} 21... bxa2 {[%clk 0:03:32.2]} 22. e4
{[%clk 0:03:07.9]} 22... Rab8 {[%clk 0:03:30]} 23. e5 {[%clk 0:02:55.3]} 23...
f5 {[%clk 0:03:28.6]} 24. g4 {[%clk 0:02:28.1]} 24... Ng5 {[%clk 0:03:15.8]} 25.
Qf4 {[%clk 0:02:24.3]} 25... Ne6 {[%clk 0:03:10.3]} 26. Qh6+ {[%clk 0:02:20.5]}
1-0

[Event "Live Chess"]
[Site "Chess.com"]
[Date "2023.05.20"]
[Round "-"]
[White "OSmith06"]
[Black "Delacorta"]
[Result "0-1"]
[WhiteElo "1694"]
[BlackElo "1413"]
[TimeControl "300"]
[EndTime "11:53:53 PDT"]
[Termination "Delacorta won by resignation"]

1. e4 {[%clk 0:04:59.1]} 1... e6 {[%clk 0:04:58.8]} 2. d4 {[%clk 0:04:56.4]}
2... d5 {[%clk 0:04:57.2]} 3. Nd2 {[%clk 0:04:54.4]} 3... dxe4 {[%clk
0:04:56.2]} 4. Nxe4 {[%clk 0:04:54.3]} 4... Bd7 {[%clk 0:04:55.7]} 5. Nf3 {[%clk
0:04:52.5]} 5... Bc6 {[%clk 0:04:55]} 6. Bd3 {[%clk 0:04:50.3]} 6... Nd7 {[%clk
0:04:54]} 7. O-O {[%clk 0:04:47.7]} 7... Ngf6 {[%clk 0:04:53.1]} 8. Nxf6+ {[%clk
0:04:46.2]} 8... Nxf6 {[%clk 0:04:51.9]} 9. c3 {[%clk 0:04:41.8]} 9... Bxf3
{[%clk 0:04:49.1]} 10. Qxf3 {[%clk 0:04:40.6]} 10... c6 {[%clk 0:04:48.6]} 11.
Bg5 {[%clk 0:04:38.5]} 11... Be7 {[%clk 0:04:47.9]} 12. Rfe1 {[%clk 0:04:37.1]}
12... O-O {[%clk 0:04:46.8]} 13. Bc2 {[%clk 0:04:33.2]} 13... Rc8 {[%clk
0:04:45.7]} 14. Qd3 {[%clk 0:04:31.9]} 14... g6 {[%clk 0:04:40.7]} 15. Re3
{[%clk 0:04:28.5]} 15... c5 {[%clk 0:04:39.1]} 16. Rh3 {[%clk 0:04:23.3]} 16...
cxd4 {[%clk 0:04:28.6]} 17. cxd4 {[%clk 0:04:11]} 17... Qd5 {[%clk 0:03:45.2]}
18. Bb3 {[%clk 0:04:05.6]} 18... Qxg5 {[%clk 0:03:41.2]} 19. Rg3 {[%clk
0:03:53.6]} 19... Rc1+ {[%clk 0:03:38.9]} 20. Rxc1 {[%clk 0:03:49.6]} 20...
Qxc1+ {[%clk 0:03:37.2]} 21. Bd1 {[%clk 0:03:48.8]} 21... Ne4 {[%clk 0:03:12.3]}
22. Rh3 {[%clk 0:03:37.6]} 22... Nd2 {[%clk 0:03:05]} 23. Qe2 {[%clk 0:03:10.2]}
23... Rc8 {[%clk 0:02:19.5]} 24. Rc3 {[%clk 0:03:03.5]} 24... Rxc3 {[%clk
0:02:16.8]} 25. bxc3 {[%clk 0:03:02.5]} 0-1

[Event "Live Chess"]
[Site "Chess.com"]
[Date "2023.05.20"]
[Round "-"]
[White "Sir_Sigmund"]
[Black "KeithArkell"]
[Result "0-1"]
[WhiteElo "1911"]
[BlackElo "2610"]
[TimeControl "300"]
[EndTime "11:53:57 PDT"]
[Termination "KeithArkell won by resignation"]

1. e4 {[%clk 0:04:58.5]} 1... c6 {[%clk 0:04:59.3]} 2. f4 {[%clk 0:04:56.6]}
2... d5 {[%clk 0:04:58.7]} 3. exd5 {[%clk 0:04:55.4]} 3... cxd5 {[%clk
0:04:58.2]} 4. Nf3 {[%clk 0:04:54.8]} 4... Nc6 {[%clk 0:04:57.7]} 5. d4 {[%clk
0:04:53.8]} 5... Bf5 {[%clk 0:04:56.6]} 6. Bd3 {[%clk 0:04:51.1]} 6... Bxd3
{[%clk 0:04:55.8]} 7. Qxd3 {[%clk 0:04:51]} 7... g6 {[%clk 0:04:55.4]} 8. c3
{[%clk 0:04:50]} 8... e6 {[%clk 0:04:54.8]} 9. O-O {[%clk 0:04:49.1]} 9... Nge7
{[%clk 0:04:54.5]} 10. Kh1 {[%clk 0:04:47.8]} 10... Bg7 {[%clk 0:04:54]} 11. Be3
{[%clk 0:04:46.3]} 11... h5 {[%clk 0:04:53.1]} 12. Nbd2 {[%clk 0:04:45.1]} 12...
Nf5 {[%clk 0:04:52.5]} 13. Bg1 {[%clk 0:04:39.5]} 13... h4 {[%clk 0:04:51.4]}
14. Ne5 {[%clk 0:04:33.7]} 14... Ng3+ {[%clk 0:04:47.9]} 0-1

[Event "Live Chess"]
[Site "Chess.com"]
[Date "2023.05.20"]
[Round "-"]
[White "HoarseyHorsey"]
[Black "BostonStrangler"]
[Result "0-1"]
[WhiteElo "1368"]
[BlackElo "2046"]
[TimeControl "300"]
[EndTime "11:54:04 PDT"]
[Termination "BostonStrangler won by resignation"]

1. d4 {[%clk 0:04:58.5]} 1... Nf6 {[%clk 0:04:58.5]} 2. c4 {[%clk 0:04:57.2]}
2... c5 {[%clk 0:04:57.4]} 3. d5 {[%clk 0:04:56.1]} 3... b5 {[%clk 0:04:57.1]}
4. cxb5 {[%clk 0:04:54.8]} 4... a6 {[%clk 0:04:56.8]} 5. e3 {[%clk 0:04:53.3]}
5... axb5 {[%clk 0:04:54.8]} 6. Bxb5 {[%clk 0:04:51.6]} 6... Qa5+ {[%clk
0:04:53.9]} 7. Nc3 {[%clk 0:04:50.5]} 7... e6 {[%clk 0:04:52.1]} 8. Bd2 {[%clk
0:04:48.7]} 8... Qb6 {[%clk 0:04:51]} 9. a4 {[%clk 0:04:47.2]} 9... Nxd5 {[%clk
0:04:47.5]} 10. Nxd5 {[%clk 0:04:46.1]} 10... exd5 {[%clk 0:04:46.6]} 11. Qg4
{[%clk 0:04:37.5]} 11... Nc6 {[%clk 0:04:32.8]} 12. Nf3 {[%clk 0:04:24.3]} 12...
d6 {[%clk 0:04:26.6]} 13. Qg3 {[%clk 0:04:21.9]} 13... Qxb5 {[%clk 0:04:22]} 14.
axb5 {[%clk 0:04:19.6]} 14... Rxa1+ {[%clk 0:04:20]} 15. Ke2 {[%clk 0:04:18.7]}
15... Rxh1 {[%clk 0:04:14.9]} 16. Bc3 {[%clk 0:04:17.9]} 16... Nb4 {[%clk
0:03:31.9]} 0-1

[Event "Live Chess"]
[Site "Chess.com"]
[Date "2023.05.20"]
[Round "-"]
[White "1600x"]
[Black "1PRK1"]
[Result "1-0"]
[WhiteElo "1674"]
[BlackElo "1378"]
[TimeControl "300"]
[EndTime "11:54:06 PDT"]
[Termination "1600x won by resignation"]

1. e4 {[%clk 0:04:54.7]} 1... c5 {[%clk 0:04:59.2]} 2. Bc4 {[%clk 0:04:48.5]}
2... d6 {[%clk 0:04:57.5]} 3. d4 {[%clk 0:04:46.6]} 3... cxd4 {[%clk 0:04:55.8]}
4. Ne2 {[%clk 0:04:43.4]} 4... e5 {[%clk 0:04:53.4]} 5. c3 {[%clk 0:04:41.5]}
5... a6 {[%clk 0:04:52.7]} 6. Qb3 {[%clk 0:04:39.7]} 6... Qc7 {[%clk 0:04:45.5]}
7. cxd4 {[%clk 0:04:36.2]} 7... b5 {[%clk 0:04:44.3]} 8. Bd5 {[%clk 0:04:22.3]}
8... Bb7 {[%clk 0:04:42.6]} 9. O-O {[%clk 0:04:08.8]} 9... Bxd5 {[%clk 0:04:34]}
10. exd5 {[%clk 0:04:08.7]} 10... Nf6 {[%clk 0:04:20]} 11. Bg5 {[%clk
0:04:05.9]} 11... Be7 {[%clk 0:04:18.2]} 12. Rc1 {[%clk 0:04:03.9]} 12... O-O
{[%clk 0:04:14.1]} 13. Rxc7 {[%clk 0:04:01.7]} 1-0

[Event "Live Chess"]
[Site "Chess.com"]
[Date "2023.05.20"]
[Round "-"]
[White "McSlash1"]
[Black "DerbyKnight"]
[Result "1-0"]
[WhiteElo "2055"]
[BlackElo "1644"]
[TimeControl "300"]
[EndTime "11:54:08 PDT"]
[Termination "McSlash1 won by resignation"]

1. e4 {[%clk 0:04:58.3]} 1... c6 {[%clk 0:04:58]} 2. d4 {[%clk 0:04:57.5]} 2...
d5 {[%clk 0:04:57.5]} 3. Nc3 {[%clk 0:04:56.8]} 3... dxe4 {[%clk 0:04:56.2]} 4.
Nxe4 {[%clk 0:04:56.7]} 4... Nf6 {[%clk 0:04:55.8]} 5. Nxf6+ {[%clk 0:04:56.4]}
5... exf6 {[%clk 0:04:54.8]} 6. Nf3 {[%clk 0:04:56.3]} 6... Bd6 {[%clk
0:04:52.2]} 7. Bd3 {[%clk 0:04:55.9]} 7... O-O {[%clk 0:04:45.8]} 8. O-O {[%clk
0:04:55.5]} 8... Bg4 {[%clk 0:04:43.8]} 9. h3 {[%clk 0:04:54.2]} 9... Bh5 {[%clk
0:04:37.7]} 10. c3 {[%clk 0:04:49.9]} 10... Re8 {[%clk 0:04:36.5]} 11. Be3
{[%clk 0:04:41.2]} 11... Nd7 {[%clk 0:04:34.5]} 12. Be2 {[%clk 0:04:39.2]} 12...
Nf8 {[%clk 0:04:29.9]} 13. Nd2 {[%clk 0:04:38.4]} 13... Bg6 {[%clk 0:04:24.6]}
14. Nb3 {[%clk 0:04:37.8]} 14... b6 {[%clk 0:04:20.7]} 15. Bd3 {[%clk
0:04:36.9]} 15... Rc8 {[%clk 0:04:06.3]} 16. Bxg6 {[%clk 0:04:30.2]} 16... hxg6
{[%clk 0:04:06.2]} 17. Qd2 {[%clk 0:04:29.7]} 17... Ne6 {[%clk 0:03:58.6]} 18.
f4 {[%clk 0:04:26.7]} 18... f5 {[%clk 0:03:51]} 19. Rae1 {[%clk 0:04:21.7]}
19... Nc7 {[%clk 0:03:47.4]} 20. Qc2 {[%clk 0:04:16.9]} 20... Nd5 {[%clk
0:03:43.4]} 21. Bc1 {[%clk 0:04:15.5]} 21... Qh4 {[%clk 0:03:38.1]} 22. Rxe8+
{[%clk 0:04:06.5]} 22... Rxe8 {[%clk 0:03:35.6]} 23. Qd2 {[%clk 0:03:40.6]}
23... Qg3 {[%clk 0:03:19.7]} 24. Qf2 {[%clk 0:03:34.3]} 24... Qd3 {[%clk
0:03:07.8]} 25. g3 {[%clk 0:03:21.5]} 25... Re2 {[%clk 0:03:05.5]} 26. Qf3
{[%clk 0:03:17.7]} 26... Qc2 {[%clk 0:03:00.1]} 27. c4 {[%clk 0:03:09.2]} 27...
Nf6 {[%clk 0:02:46.7]} 28. d5 {[%clk 0:03:06.5]} 28... cxd5 {[%clk 0:02:36.2]}
29. Nd4 {[%clk 0:03:04.7]} 29... Qe4 {[%clk 0:02:19.6]} 30. Nxe2 {[%clk
0:03:01.2]} 30... Qxf3 {[%clk 0:02:14.9]} 31. Rxf3 {[%clk 0:03:01.1]} 31... dxc4
{[%clk 0:02:13.3]} 32. Rc3 {[%clk 0:02:57.1]} 32... b5 {[%clk 0:02:07.8]} 33.
Be3 {[%clk 0:02:54.7]} 33... Nd5 {[%clk 0:02:02.9]} 34. Rc2 {[%clk 0:02:43.9]}
34... a5 {[%clk 0:01:58.8]} 35. Rd2 {[%clk 0:02:41.6]} 35... Nxe3 {[%clk
0:01:44.2]} 36. Rxd6 {[%clk 0:02:40.3]} 36... b4 {[%clk 0:01:42.9]} 37. Kf2
{[%clk 0:02:36.6]} 37... Nc2 {[%clk 0:01:34.2]} 38. Rc6 {[%clk 0:02:33.4]} 38...
b3 {[%clk 0:01:27]} 39. axb3 {[%clk 0:02:31.3]} 39... cxb3 {[%clk 0:01:25.2]}
40. Ra6 {[%clk 0:02:29.2]} 40... Nb4 {[%clk 0:01:14.3]} 41. Rxa5 {[%clk
0:02:27.9]} 41... Nd3+ {[%clk 0:01:12.5]} 42. Ke3 {[%clk 0:02:27.5]} 42... Nxb2
{[%clk 0:01:11.4]} 43. Rb5 {[%clk 0:02:24.5]} 43... Nc4+ {[%clk 0:01:08.7]} 44.
Kd3 {[%clk 0:02:23.1]} 44... Na3 {[%clk 0:01:02]} 45. Rxb3 {[%clk 0:02:21.4]}
1-0

[Event "Live Chess"]
[Site "Chess.com"]
[Date "2023.05.20"]
[Round "-"]
[White "f4nomore"]
[Black "Ian-Morley"]
[Result "1-0"]
[WhiteElo "1372"]
[BlackElo "1026"]
[TimeControl "300"]
[EndTime "11:54:09 PDT"]
[Termination "f4nomore won by checkmate"]

1. d4 {[%clk 0:04:58.5]} 1... e5 {[%clk 0:04:57.3]} 2. dxe5 {[%clk 0:04:56.9]}
2... Nc6 {[%clk 0:04:54.7]} 3. Nf3 {[%clk 0:04:53]} 3... Qe7 {[%clk 0:04:51.2]}
4. Bf4 {[%clk 0:04:48.6]} 4... Qb4+ {[%clk 0:04:47.6]} 5. Nbd2 {[%clk
0:04:35.5]} 5... Qxb2 {[%clk 0:04:38.3]} 6. e3 {[%clk 0:04:22.4]} 6... Nb4
{[%clk 0:04:35.5]} 7. Nd4 {[%clk 0:03:46.4]} 7... c5 {[%clk 0:03:45.4]} 8. a3
{[%clk 0:03:38.1]} 8... cxd4 {[%clk 0:03:40.9]} 9. axb4 {[%clk 0:03:34.7]} 9...
Bxb4 {[%clk 0:03:39.5]} 10. exd4 {[%clk 0:02:57.5]} 10... Bxd2+ {[%clk
0:03:24.7]} 11. Bxd2 {[%clk 0:02:46.7]} 11... Qxd4 {[%clk 0:03:12]} 12. Be2
{[%clk 0:02:32.2]} 12... Qxe5 {[%clk 0:03:08.6]} 13. O-O {[%clk 0:02:30.6]}
13... Nf6 {[%clk 0:03:04.7]} 14. Bf3 {[%clk 0:02:29.3]} 14... Kf8 {[%clk
0:02:45.5]} 15. Re1 {[%clk 0:02:25.3]} 15... Qb5 {[%clk 0:02:36.6]} 16. Rb1
{[%clk 0:02:19.2]} 16... Qa6 {[%clk 0:02:35]} 17. Be2 {[%clk 0:02:14.2]} 17...
b5 {[%clk 0:02:33.4]} 18. Bxb5 {[%clk 0:02:00.3]} 18... Qb7 {[%clk 0:02:29.9]}
19. Bb4+ {[%clk 0:01:51.5]} 19... Kg8 {[%clk 0:02:26.6]} 20. Qe2 {[%clk
0:01:46.4]} 20... h6 {[%clk 0:02:23.9]} 21. Bd3 {[%clk 0:01:20.5]} 21... d6
{[%clk 0:01:40.1]} 22. Qe8+ {[%clk 0:01:16.7]} 22... Nxe8 {[%clk 0:01:38.7]} 23.
Rxe8# {[%clk 0:01:14.3]} 1-0

[Event "Live Chess"]
[Site "Chess.com"]
[Date "2023.05.20"]
[Round "-"]
[White "ElectricFalcon"]
[Black "MartinWalker4"]
[Result "0-1"]
[WhiteElo "1066"]
[BlackElo "2081"]
[TimeControl "300"]
[EndTime "11:54:20 PDT"]
[Termination "MartinWalker4 won by checkmate"]

1. d4 {[%clk 0:04:58.9]} 1... Nf6 {[%clk 0:04:57.8]} 2. c4 {[%clk 0:04:53.2]}
2... g6 {[%clk 0:04:56.4]} 3. Nf3 {[%clk 0:04:52.1]} 3... Bg7 {[%clk 0:04:54.2]}
4. Nc3 {[%clk 0:04:51.1]} 4... d5 {[%clk 0:04:52.9]} 5. c5 {[%clk 0:04:45.2]}
5... O-O {[%clk 0:04:49.5]} 6. Bg5 {[%clk 0:04:44.3]} 6... b6 {[%clk 0:04:47.1]}
7. cxb6 {[%clk 0:04:39.4]} 7... axb6 {[%clk 0:04:45.4]} 8. e3 {[%clk 0:04:38.6]}
8... h6 {[%clk 0:04:38.1]} 9. Bxf6 {[%clk 0:04:37.4]} 9... Bxf6 {[%clk
0:04:36.4]} 10. Qb3 {[%clk 0:04:32.7]} 10... c6 {[%clk 0:04:34.3]} 11. Be2
{[%clk 0:04:23.4]} 11... Be6 {[%clk 0:04:32.8]} 12. O-O {[%clk 0:04:20.5]} 12...
c5 {[%clk 0:04:31.1]} 13. Rad1 {[%clk 0:04:13.5]} 13... Nc6 {[%clk 0:04:29]} 14.
Bb5 {[%clk 0:03:56]} 14... Na5 {[%clk 0:04:23.9]} 15. Qc2 {[%clk 0:03:49.4]}
15... c4 {[%clk 0:04:16.2]} 16. Qd2 {[%clk 0:03:42.6]} 16... Bf5 {[%clk
0:04:05.7]} 17. b4 {[%clk 0:03:21.7]} 17... cxb3 {[%clk 0:04:01.7]} 18. axb3
{[%clk 0:03:19.8]} 18... Nxb3 {[%clk 0:03:58]} 19. Qb2 {[%clk 0:03:18.2]} 19...
Na5 {[%clk 0:03:56.6]} 20. Na2 {[%clk 0:02:29.2]} 20... Nc4 {[%clk 0:03:50.1]}
21. Qb3 {[%clk 0:02:10.8]} 21... Ra3 {[%clk 0:03:47]} 22. Qb4 {[%clk 0:01:58.8]}
22... Rxa2 {[%clk 0:03:45.3]} 23. Bxc4 {[%clk 0:01:55.4]} 23... dxc4 {[%clk
0:03:43.6]} 24. Qxc4 {[%clk 0:01:54.8]} 24... Ra8 {[%clk 0:03:38.1]} 25. d5
{[%clk 0:01:52.5]} 25... Qd7 {[%clk 0:03:33.7]} 26. e4 {[%clk 0:01:44.1]} 26...
Bg4 {[%clk 0:03:23.7]} 27. Qb3 {[%clk 0:01:34.5]} 27... Bxf3 {[%clk 0:03:13.8]}
28. Qxf3 {[%clk 0:01:32.2]} 28... Qd6 {[%clk 0:03:05.4]} 29. Rfe1 {[%clk
0:01:28.3]} 29... Rfc8 {[%clk 0:03:01.8]} 30. e5 {[%clk 0:01:23.3]} 30... Bxe5
{[%clk 0:02:59.9]} 31. Qe3 {[%clk 0:01:16.1]} 31... Bxh2+ {[%clk 0:02:57.8]} 32.
Kf1 {[%clk 0:01:14.7]} 32... Bf4 {[%clk 0:02:56.1]} 33. Qh3 {[%clk 0:01:04.7]}
33... Rc2 {[%clk 0:02:37.7]} 34. g3 {[%clk 0:00:57]} 34... Qc5 {[%clk
0:02:35.9]} 35. gxf4 {[%clk 0:00:52.8]} 35... Qxf2# {[%clk 0:02:33.8]} 0-1

[Event "Live Chess"]
[Site "Chess.com"]
[Date "2023.05.20"]
[Round "-"]
[White "ViktorTheCoolBoy"]
[Black "Bot_Boy"]
[Result "1-0"]
[WhiteElo "2537"]
[BlackElo "332"]
[TimeControl "300"]
[EndTime "11:54:23 PDT"]
[Termination "ViktorTheCoolBoy won on time"]

1. d4 {[%clk 0:04:48.4]} 1... c6 {[%clk 0:04:57.1]} 2. Nf3 {[%clk 0:04:46.3]}
2... d5 {[%clk 0:04:55.1]} 3. Bf4 {[%clk 0:04:45.5]} 3... Na6 {[%clk 0:04:49.7]}
4. e3 {[%clk 0:04:42.2]} 4... e6 {[%clk 0:04:39.5]} 5. c4 {[%clk 0:04:38.4]}
5... Bb4+ {[%clk 0:04:23.3]} 6. Nc3 {[%clk 0:04:36.5]} 6... c5 {[%clk
0:04:10.1]} 7. cxd5 {[%clk 0:04:34.2]} 7... Bxc3+ {[%clk 0:04:00]} 8. bxc3
{[%clk 0:04:32.7]} 8... cxd4 {[%clk 0:03:49.6]} 9. Qa4+ {[%clk 0:04:24.4]} 9...
Kf8 {[%clk 0:03:23.8]} 10. cxd4 {[%clk 0:04:15.8]} 10... Bd7 {[%clk 0:02:39.2]}
11. Qa3+ {[%clk 0:04:13.3]} 11... Ne7 {[%clk 0:02:34.4]} 12. dxe6 {[%clk
0:04:08.2]} 12... fxe6 {[%clk 0:02:16.6]} 13. Bd3 {[%clk 0:04:00.8]} 13... Rc8
{[%clk 0:01:52.3]} 14. O-O {[%clk 0:03:58.4]} 14... h6 {[%clk 0:01:24]} 15. Rfc1
{[%clk 0:03:56.2]} 15... Rxc1+ {[%clk 0:01:13.9]} 16. Rxc1 {[%clk 0:03:54.2]}
16... Kf7 {[%clk 0:00:32]} 17. Ne5+ {[%clk 0:03:51.8]} 17... Kf6 {[%clk
0:00:17.7]} 18. Qd6 {[%clk 0:03:27]} 18... g5 {[%clk 0:00:11.1]} 19. Nxd7+
{[%clk 0:03:25.6]} 1-0

[Event "Live Chess"]
[Site "Chess.com"]
[Date "2023.05.20"]
[Round "-"]
[White "elephantgerrald"]
[Black "JackRudd"]
[Result "0-1"]
[WhiteElo "372"]
[BlackElo "2434"]
[TimeControl "300"]
[EndTime "11:54:24 PDT"]
[Termination "JackRudd won by checkmate"]

1. e4 {[%clk 0:04:49.8]} 1... e5 {[%clk 0:04:59]} 2. Nf3 {[%clk 0:04:48.1]} 2...
Nc6 {[%clk 0:04:58.2]} 3. Bb5 {[%clk 0:04:30.3]} 3... Nf6 {[%clk 0:04:55.9]} 4.
Bxc6 {[%clk 0:04:26.4]} 4... dxc6 {[%clk 0:04:54.7]} 5. Nxe5 {[%clk 0:04:22.9]}
5... Qd4 {[%clk 0:04:52.5]} 6. Nf3 {[%clk 0:04:08]} 6... Qxe4+ {[%clk
0:04:49.7]} 7. Qe2 {[%clk 0:04:05.7]} 7... Qxe2+ {[%clk 0:04:46.5]} 8. Kxe2
{[%clk 0:04:04.1]} 8... Bf5 {[%clk 0:04:45.4]} 9. d3 {[%clk 0:03:58.5]} 9...
O-O-O {[%clk 0:04:44.4]} 10. Re1 {[%clk 0:03:49.8]} 10... Bc5 {[%clk 0:04:41.1]}
11. Ng5 {[%clk 0:03:47.4]} 11... Bg6 {[%clk 0:04:35.3]} 12. Kf1 {[%clk
0:03:44.3]} 12... Ng4 {[%clk 0:04:31.2]} 13. h3 {[%clk 0:03:40.6]} 13... Nxf2
{[%clk 0:04:24.7]} 14. Be3 {[%clk 0:03:29.6]} 14... Bxe3 {[%clk 0:04:23.5]} 15.
Rxe3 {[%clk 0:03:23.6]} 15... Nd1 {[%clk 0:04:22.5]} 16. Nd2 {[%clk 0:03:07.5]}
16... Nxe3+ {[%clk 0:04:13.7]} 17. Kg1 {[%clk 0:02:51.4]} 17... Nxc2 {[%clk
0:04:10.5]} 18. Rc1 {[%clk 0:02:46.7]} 18... Nd4 {[%clk 0:04:07.4]} 19. h4
{[%clk 0:02:43.6]} 19... Ne2+ {[%clk 0:04:06.2]} 20. Kh2 {[%clk 0:02:39.4]}
20... Nxc1 {[%clk 0:04:05.1]} 21. h5 {[%clk 0:02:38.1]} 21... Bxh5 {[%clk
0:04:03.5]} 22. g4 {[%clk 0:02:36.7]} 22... Bg6 {[%clk 0:04:02.2]} 23. Nde4
{[%clk 0:02:32.2]} 23... Rxd3 {[%clk 0:04:00]} 24. Kg2 {[%clk 0:02:27.5]} 24...
h6 {[%clk 0:03:58.3]} 25. Nf3 {[%clk 0:02:24.5]} 25... Bxe4 {[%clk 0:03:56.6]}
26. Kf2 {[%clk 0:01:57.4]} 26... Rxf3+ {[%clk 0:03:55]} 27. Kg2 {[%clk
0:01:49.8]} 27... Rd8 {[%clk 0:03:52.6]} 28. g5 {[%clk 0:01:46.2]} 28... hxg5
{[%clk 0:03:50.9]} 29. a3 {[%clk 0:01:43.4]} 29... Rd2+ {[%clk 0:03:49.6]} 30.
Kg1 {[%clk 0:01:41.5]} 30... Ne2+ {[%clk 0:03:48.1]} 31. Kg2 {[%clk 0:01:39.7]}
31... Nf4+ {[%clk 0:03:46.5]} 32. Kg1 {[%clk 0:01:37.9]} 32... Nh3+ {[%clk
0:03:45.5]} 33. Kh1 {[%clk 0:01:32.8]} 33... Rxa3# {[%clk 0:03:44.5]} 0-1

[Event "Live Chess"]
[Site "Chess.com"]
[Date "2023.05.20"]
[Round "-"]
[White "ACx04"]
[Black "whitedjohn"]
[Result "0-1"]
[WhiteElo "415"]
[BlackElo "1670"]
[TimeControl "300"]
[EndTime "11:54:31 PDT"]
[Termination "whitedjohn won by checkmate"]

1. e4 {[%clk 0:04:59]} 1... Nf6 {[%clk 0:04:57.4]} 2. Nc3 {[%clk 0:04:57.3]}
2... d5 {[%clk 0:04:54.1]} 3. exd5 {[%clk 0:04:55.9]} 3... Nxd5 {[%clk
0:04:52.9]} 4. Nxd5 {[%clk 0:04:55]} 4... Qxd5 {[%clk 0:04:49]} 5. b3 {[%clk
0:04:53.9]} 5... e5 {[%clk 0:04:43.2]} 6. Bc4 {[%clk 0:04:52.4]} 6... Qxg2
{[%clk 0:04:37.7]} 7. Qe2 {[%clk 0:04:47.4]} 7... Nc6 {[%clk 0:04:32.1]} 8. Bd5
{[%clk 0:04:44.7]} 8... Qxd5 {[%clk 0:04:28.1]} 9. f3 {[%clk 0:04:40.8]} 9...
Bb4 {[%clk 0:04:24.3]} 10. Bb2 {[%clk 0:04:38.1]} 10... O-O {[%clk 0:04:22.1]}
11. O-O-O {[%clk 0:04:34.8]} 11... Bf5 {[%clk 0:04:16.4]} 12. c4 {[%clk
0:04:33.1]} 12... Qd3 {[%clk 0:04:07.4]} 13. Nh3 {[%clk 0:04:20.1]} 13... Qc2#
{[%clk 0:04:03.9]} 0-1

[Event "Live Chess"]
[Site "Chess.com"]
[Date "2023.05.20"]
[Round "-"]
[White "thrithik"]
[Black "elizaveta_frundina"]
[Result "0-1"]
[WhiteElo "459"]
[BlackElo "1565"]
[TimeControl "300"]
[EndTime "11:54:43 PDT"]
[Termination "elizaveta_frundina won by checkmate"]

1. h3 {[%clk 0:04:58]} 1... d5 {[%clk 0:04:56.7]} 2. a3 {[%clk 0:04:53.4]} 2...
Nc6 {[%clk 0:04:55.7]} 3. Nf3 {[%clk 0:04:47.1]} 3... e5 {[%clk 0:04:54.5]} 4.
Nc3 {[%clk 0:04:23.6]} 4... Nf6 {[%clk 0:04:49.8]} 5. d3 {[%clk 0:04:10.4]} 5...
d4 {[%clk 0:04:47.1]} 6. Na4 {[%clk 0:04:00]} 6... b5 {[%clk 0:04:41.5]} 7. Nc3
{[%clk 0:03:33.7]} 7... dxc3 {[%clk 0:04:40]} 8. bxc3 {[%clk 0:03:33.3]} 8...
Be6 {[%clk 0:04:31.6]} 9. Rb1 {[%clk 0:03:23.6]} 9... Nd5 {[%clk 0:04:25.1]} 10.
Rxb5 {[%clk 0:03:12.8]} 10... Nxc3 {[%clk 0:04:23.9]} 11. Qd2 {[%clk 0:03:07.4]}
11... Nxb5 {[%clk 0:04:22.4]} 12. c4 {[%clk 0:02:45.5]} 12... Nbd4 {[%clk
0:04:14.8]} 13. e3 {[%clk 0:02:40.3]} 13... Nxf3+ {[%clk 0:04:09.2]} 14. gxf3
{[%clk 0:02:36.9]} 14... Be7 {[%clk 0:04:06.7]} 15. Rg1 {[%clk 0:02:32.7]} 15...
g6 {[%clk 0:04:02.1]} 16. Bb2 {[%clk 0:02:17.9]} 16... Rb8 {[%clk 0:03:56.9]}
17. d4 {[%clk 0:02:11.5]} 17... exd4 {[%clk 0:03:52.8]} 18. Bxd4 {[%clk
0:02:07.2]} 18... Nxd4 {[%clk 0:03:44.2]} 19. exd4 {[%clk 0:02:05.4]} 19... Bxa3
{[%clk 0:03:38.5]} 20. Qa5 {[%clk 0:01:34.3]} 20... Bb4+ {[%clk 0:03:32]} 21.
Qxb4 {[%clk 0:01:01.6]} 21... Rxb4 {[%clk 0:03:27.2]} 22. Bd3 {[%clk 0:00:52.8]}
22... Qxd4 {[%clk 0:03:22.5]} 23. Bf1 {[%clk 0:00:46]} 23... Qe5+ {[%clk
0:03:16.1]} 24. Kd2 {[%clk 0:00:37.3]} 24... Rb2+ {[%clk 0:03:13.9]} 25. Kd1
{[%clk 0:00:26.4]} 25... Qd4+ {[%clk 0:03:06.6]} 26. Ke1 {[%clk 0:00:21.4]}
26... Qd2# {[%clk 0:03:05.2]} 0-1